bitfinex/quotes_SOLUSD_20250604
["timestamp","ask_amount","ask_price","bid_price","bid_amount"]
[1749037327599,1.87781107,155.99,155.97,14.45286557]
[1749037327801,20.52745993,155.99,155.98,14.45286557]
[1749037330573,1.87781107,155.97,155.93,0.42648471]
[1749037330775,1.87781107,155.97,155.96,14.45286557]
[1749037331580,1.87781107,155.98,155.96,14.45286557]
[1749037331788,1.87781107,155.99,155.97,14.45286557]
[1749037331987,1.87781107,155.99,155.93,146.42648471]
[1749037331988,1.87781107,155.99,155.98,14.45286557]
[1749037341490,1.87781107,156.0,155.98,14.45286557]
[1749037341820,1.87781107,155.99,155.98,14.45286557]
[1749037342120,18.64964886,156.03,155.93,0.42648471]
[1749037342121,1.87781107,155.97,155.93,0.42648471]
[1749037342284,1.87781107,155.97,155.96,14.45286557]
[1749037343395,1.87781107,155.96,155.95,14.45286557]
[1749037344187,1.87781107,155.97,155.95,14.45286557]
[1749037344387,1.87781107,155.93,155.91,35.25046378]
[1749037344592,1.87781107,155.95,155.92,14.45286557]
[1749037344896,1.87781107,155.95,155.94,14.45286557]
[1749037345210,1.87781107,155.96,155.94,14.45286557]
[1749037345388,1.87781107,155.96,155.95,14.45286557]
[1749037348718,1.87781107,155.95,155.92,0.14216157]
[1749037348917,1.87781107,155.95,155.94,14.45286557]
[1749037349814,1.87781107,155.94,155.93,14.45286557]
[1749037351524,1.87781107,155.94,155.91,195.70332935]
[1749037351717,1.87781107,155.93,155.91,49.70332935]
[1749037351897,1.87781107,155.92,155.91,49.70332935]
[1749037352617,33.10251443,155.96,155.91,49.70332935]
[1749037352618,1.87781107,155.93,155.91,27.11311113]
[1749037352797,1.87781107,155.92,155.91,27.11311113]
[1749037353699,1.87781107,155.92,155.91,41.5659767]
[1749037354008,1.87781107,155.92,155.91,27.11311113]
[1749037355436,20.52745993,155.92,155.89,14.45286557]
[1749037355725,1.87781107,155.91,155.89,14.45286557]
[1749037355903,1.87781107,155.9,155.88,14.45286557]
[1749037356102,1.87781107,155.89,155.87,22.42218249]
[1749037356529,1.87781107,155.89,155.88,14.45286557]
[1749037356729,1.87781107,155.9,155.88,14.45286557]
[1749037357830,1.87781107,155.9,155.89,14.45286557]
[1749037358030,1.87781107,155.89,155.88,14.45286557]
[1749037360233,1.87781107,155.89,155.87,7.96931692]
[1749037360546,1.87781107,155.89,155.88,14.45286557]
[1749037361210,1.87781107,155.89,155.87,22.42218249]
[1749037361510,1.87781107,155.88,155.87,22.42218249]
[1749037363240,20.52745993,155.88,155.87,7.96931692]
[1749037364640,1.87781107,155.88,155.87,22.42218249]
[1749037365617,1.87781107,155.88,155.87,14.45286557]
[1749037366150,1.87781107,155.87,155.83,0.14216157]
[1749037366328,1.87781107,155.87,155.86,14.45286557]
[1749037366744,1.87781107,155.89,155.86,14.45286557]
[1749037366924,1.87781107,155.88,155.87,14.45286557]
[1749037367945,1.87781107,155.86,155.85,14.45286557]
[1749037373538,1.87781107,155.83,155.82,146.14216157]
[1749037373835,1.87781107,155.83,155.82,14.45286557]
[1749037377651,1.87781107,155.84,155.82,14.45286557]
[1749037379832,1.87781107,155.86,155.83,14.45286557]
[1749037380037,1.87781107,155.86,155.85,14.45286557]
[1749037380441,1.87781107,155.84,155.83,14.45286557]
[1749037382557,1.87781107,155.85,155.83,14.45286557]
[1749037382737,1.87781107,155.85,155.84,14.45286557]
[1749037385167,1.87781107,155.84,155.82,14.45286557]
[1749037385457,1.87781107,155.82,155.81,14.45286557]
[1749037385638,1.87781107,155.81,155.8,22.46325903]
[1749037386042,1.87781107,155.81,155.8,8.01039346]
[1749037386245,1.87781107,155.81,155.78,27.69108742]
[1749037386559,20.79346557,155.83,155.78,42.14395299]
[1749037386560,1.87781107,155.79,155.78,42.14395299]
[1749037386760,1.87781107,155.79,155.75,0.14216157]
[1749037386962,1.87781107,155.79,155.77,14.45286557]
[1749037387167,1.87781107,155.78,155.77,14.45286557]
[1749037391953,1.87781107,155.79,155.77,14.45286557]
[1749037392273,1.87781107,155.79,155.78,14.45286557]
[1749037393344,1.87781107,155.79,155.77,14.45286557]
[1749037394346,1.87781107,155.79,155.78,14.45286557]
[1749037398273,20.52745993,155.78,155.73,8.09783036]
[1749037398447,1.87781107,155.76,155.73,8.09783036]
[1749037398649,1.87781107,155.77,155.75,14.45286557]
[1749037398966,1.87781107,155.77,155.73,8.09783036]
[1749037398967,1.87781107,155.77,155.76,14.45286557]
[1749037399178,1.87781107,155.78,155.76,14.45286557]
[1749037399464,1.87781107,155.77,155.76,14.45286557]
[1749037403455,1.87781107,155.78,155.76,14.59502714]
[1749037403767,1.87781107,155.78,155.77,14.45286557]
[1749037410888,1.87781107,155.79,155.78,14.45286557]
[1749037413274,1.87781107,155.79,155.78,9.27103545]
[1749037415204,1.87781107,155.79,155.78,14.48608317]
[1749037416405,1.87781107,155.8,155.78,14.48608317]
[1749037416592,1.87781107,155.79,155.78,14.48608317]
[1749037417509,1.87781107,155.8,155.78,14.48608317]
[1749037417711,1.87781107,155.79,155.78,14.48608317]
[1749037419577,1.87781107,155.81,155.78,14.48608317]
[1749037419783,1.87781107,155.85,155.81,0.14216157]
[1749037419982,1.87781107,155.85,155.84,14.48608317]
[1749037420185,1.87781107,155.86,155.84,14.48608317]
[1749037420417,1.87781107,155.86,155.85,14.48608317]
[1749037421285,1.87781107,155.87,155.85,14.48608317]
[1749037421517,1.87781107,155.87,155.86,14.48608317]
[1749037425323,1.87781107,155.86,155.81,0.28432314]
[1749037425631,1.87781107,155.86,155.85,14.48608317]
[1749037426848,1.87781107,155.85,155.84,14.48608317]
[1749037432946,1.87781107,155.87,155.84,28.97216634]
[1749037433253,1.87781107,155.87,155.86,14.48608317]
[1749037436223,1.87781107,155.88,155.86,14.48608317]
[1749037436427,1.87781107,155.89,155.87,14.48608317]
[1749037436634,1.87781107,155.89,155.88,14.48608317]
[1749037437046,1.87781107,155.89,155.85,0.28432314]
[1749037437238,1.87781107,155.89,155.88,14.48608317]
[1749037437847,1.87781107,155.91,155.85,0.42648471]
[1749037438058,1.87781107,155.89,155.84,14.48608317]
[1749037438266,1.87781107,155.89,155.88,14.48608317]
[1749037438440,1.87781107,155.89,155.87,14.48608317]
[1749037439840,1.87781107,155.89,155.88,14.48608317]
[1749037442742,1.87781107,155.91,155.88,14.48608317]
[1749037442941,1.87781107,155.9,155.89,14.48608317]
[1749037444507,1.87781107,155.91,155.89,14.48608317]
[1749037444790,1.87781107,155.91,155.84,160.48608317]
[1749037444791,1.87781107,155.9,155.85,0.56864628]
[1749037445006,21.07928317,155.95,155.85,0.56864628]
[1749037445007,1.87781107,155.92,155.85,146.56864628]
[1749037445303,6.5932,155.95,155.87,0.56864628]
[1749037445304,1.87781107,155.93,155.87,0.56864628]
[1749037446403,1.87781107,155.91,155.87,0.56864628]
[1749037446701,1.87781107,155.93,155.9,14.62824474]
[1749037446901,1.87781107,155.94,155.92,14.48608317]
[1749037447071,1.87781107,155.94,155.93,14.48608317]
[1749037448267,1.87781107,155.94,155.92,14.48608317]
[1749037448889,1.87781107,155.93,155.9,14.48608317]
[1749037449167,1.87781107,155.91,155.9,14.48608317]
[1749037451774,1.87781107,155.93,155.9,14.48608317]
[1749037451975,1.87781107,155.91,155.9,14.48608317]
[1749037452197,1.87781107,155.93,155.9,14.48608317]
[1749037452397,33.13573203,155.94,155.9,14.48608317]
[1749037452398,1.87781107,155.91,155.9,14.48608317]
[1749037453981,1.87781107,155.93,155.9,14.48608317]
[1749037454197,1.87781107,155.91,155.9,14.48608317]
[1749037454879,1.87781107,155.93,155.9,14.48608317]
[1749037455078,1.87781107,155.91,155.9,14.48608317]
[1749037455275,1.87781107,155.91,155.87,0.14216157]
[1749037455503,1.87781107,155.9,155.88,14.48608317]
[1749037455697,1.87781107,155.9,155.89,14.48608317]
[1749037462492,1.87781107,155.9,155.88,14.48608317]
[1749037466003,1.87781107,155.88,155.86,8.09236648]
[1749037466199,1.87781107,155.88,155.83,0.14216157]
[1749037466200,1.87781107,155.87,155.85,14.48608317]
[1749037466796,1.87781107,155.87,155.86,14.48608317]
[1749037467188,1.87781107,155.86,155.83,0.14216157]
[1749037467402,1.87781107,155.87,155.85,14.48608317]
[1749037467608,1.87781107,155.87,155.86,14.48608317]
[1749037467804,1.87781107,155.88,155.86,14.48608317]
[1749037467993,1.87781107,155.87,155.84,5.13224867]
[1749037468192,1.87781107,155.87,155.86,14.48608317]
[1749037468901,1.87781107,155.88,155.86,14.48608317]
[1749037469107,1.87781107,155.88,155.83,0.14216157]
[1749037469108,1.87781107,155.88,155.87,14.48608317]
[1749037470296,1.87781107,155.87,155.86,14.48608317]
[1749037471112,1.87781107,155.87,155.83,0.14216157]
[1749037471302,1.87781107,155.87,155.86,14.48608317]
[1749037471985,1.87781107,155.87,155.85,14.48608317]
[1749037473296,1.87781107,155.86,155.85,14.48608317]
[1749037475409,1.87781107,155.86,155.82,0.28432314]
[1749037475410,1.87781107,155.86,155.84,14.48608317]
[1749037475812,1.87781107,155.86,155.82,0.42648471]
[1749037476114,0.13807385,155.86,155.85,14.48608317]
[1749037477599,0.13807385,155.87,155.85,14.48608317]
[1749037477799,18.64964886,155.88,155.85,14.48608317]
[1749037477800,0.13807385,155.86,155.85,14.48608317]
[1749037479304,0.13807385,155.88,155.85,14.48608317]
[1749037479610,0.13807385,155.88,155.87,14.48608317]
[1749037483843,0.13807385,155.88,155.86,14.48608317]
[1749037484536,0.13807385,155.88,155.87,14.48608317]
[1749037484737,18.78772271,155.89,155.87,14.48608317]
[1749037485043,0.13807385,155.88,155.87,14.48608317]
[1749037487626,0.13807385,155.88,155.86,14.48608317]
[1749037487934,0.13807385,155.87,155.86,14.48608317]
[1749037490329,0.13807385,155.87,155.85,26.0]
[1749037490528,0.13807385,155.86,155.85,40.48608317]
[1749037490729,0.13807385,155.86,155.85,14.48608317]
[1749037491043,18.64964886,155.89,155.82,174.5324535]
[1749037491044,0.13807385,155.85,155.84,14.48608317]
[1749037491243,0.13807385,155.87,155.86,26.14216157]
[1749037491434,0.13807385,155.87,155.86,40.62824474]
[1749037491640,0.13807385,155.88,155.86,40.62824474]
[1749037491843,0.13807385,155.88,155.87,14.48608317]
[1749037494943,0.13807385,155.85,155.84,14.62824474]
[1749037498133,0.13807385,155.85,155.84,26.14216157]
[1749037498343,0.13807385,155.85,155.84,40.62824474]
[1749037500036,0.13807385,155.86,155.84,40.62824474]
[1749037500237,0.13807385,155.86,155.85,40.48608317]
[1749037500633,0.13807385,155.86,155.85,26.0]
[1749037500828,0.13807385,155.86,155.85,40.48608317]
[1749037501152,0.13807385,155.86,155.85,26.0]
[1749037501351,0.13807385,155.86,155.85,40.48608317]
[1749037501755,0.13807385,155.86,155.84,14.48608317]
[1749037501957,33.13573203,155.89,155.84,40.48608317]
[1749037501958,0.13807385,155.85,155.84,40.48608317]
[1749037502348,0.13807385,155.84,155.83,14.48608317]
[1749037502733,0.13807385,155.83,155.82,27.96380722]
[1749037503959,0.13807385,155.82,155.81,14.48608317]
[1749037504173,0.13807385,155.81,155.8,5.11683372]
[1749037504387,0.13807385,155.81,155.8,14.48608317]
[1749037504758,0.13807385,155.81,155.79,33.97890702]
[1749037504959,0.13807385,155.8,155.79,22.46499019]
[1749037505160,0.13807385,155.8,155.79,48.46499019]
[1749037507381,0.13807385,155.8,155.79,40.48608317]
[1749037508153,18.64964886,155.84,155.79,40.48608317]
[1749037508154,0.13807385,155.81,155.79,40.48608317]
[1749037508364,18.64964886,155.85,155.79,40.48608317]
[1749037508365,0.13807385,155.82,155.8,14.48608317]
[1749037508568,0.13807385,155.82,155.81,40.48608317]
[1749037508778,0.13807385,155.82,155.81,14.48608317]
[1749037510987,0.13807385,155.83,155.79,26.28432314]
[1749037511174,0.13807385,155.81,155.79,26.0]
[1749037511379,0.13807385,155.81,155.8,14.48608317]
[1749037512987,0.13807385,155.82,155.8,14.48608317]
[1749037513182,0.13807385,155.82,155.81,14.48608317]
[1749037513389,0.13807385,155.83,155.81,14.48608317]
[1749037513690,0.13807385,155.83,155.82,14.48608317]
[1749037513861,0.13807385,155.82,155.8,0.42648471]
[1749037514062,0.13807385,155.82,155.81,14.48608317]
[1749037516270,0.13807385,155.83,155.81,14.48608317]
[1749037516471,0.13807385,155.82,155.8,0.42648471]
[1749037516673,0.13807385,155.83,155.81,14.48608317]
[1749037516876,0.13807385,155.83,155.8,0.42648471]
[1749037517072,0.13807385,155.84,155.82,14.48608317]
[1749037517280,0.13807385,155.85,155.83,14.48608317]
[1749037517592,0.13807385,155.85,155.82,0.42648471]
[1749037518468,0.13807385,155.85,155.84,14.48608317]
[1749037519309,25.23364886,155.9,155.87,26.0]
[1749037519310,0.13807385,155.88,155.87,26.0]
[1749037519483,0.13807385,155.89,155.87,40.48608317]
[1749037519690,0.13807385,155.89,155.88,14.48608317]
[1749037521684,0.13807385,155.91,155.9,26.0]
[1749037521908,0.13807385,155.93,155.9,14.48608317]
[1749037522107,0.13807385,155.93,155.92,14.48608317]
[1749037522996,0.13807385,155.93,155.87,0.56864628]
[1749037523191,0.13807385,155.9,155.87,26.42648471]
[1749037523395,0.13807385,155.9,155.89,14.48608317]
[1749037527308,0.13807385,155.9,155.87,26.42648471]
[1749037527711,0.13807385,155.88,155.84,40.62824474]
[1749037527917,0.13807385,155.88,155.87,14.48608317]
[1749037528117,18.64964886,155.91,155.88,0.42648471]
[1749037528118,0.13807385,155.91,155.88,0.42648471]
[1749037528316,0.13807385,155.91,155.9,14.48608317]
[1749037531525,0.13807385,155.92,155.9,14.48608317]
[1749037531700,0.13807385,155.92,155.91,14.48608317]
[1749037533216,0.13807385,155.93,155.91,14.48608317]
[1749037533414,0.13807385,155.92,155.89,0.14216157]
[1749037533610,0.13807385,155.92,155.91,14.48608317]
[1749037537734,0.13807385,155.93,155.91,14.48608317]
[1749037538034,0.13807385,155.93,155.92,14.48608317]
[1749037538240,0.13807385,155.93,155.88,26.28432314]
[1749037538442,0.13807385,155.92,155.91,14.48608317]
[1749037538933,0.13807385,155.92,155.9,14.48608317]
[1749037539238,0.13807385,155.9,155.88,26.0]
[1749037539432,0.13807385,155.9,155.89,14.48608317]
[1749037540136,0.13807385,155.9,155.88,26.0]
[1749037540336,0.13807385,155.92,155.89,14.48608317]
[1749037540540,0.13807385,155.9,155.88,26.0]
[1749037540720,0.13807385,155.9,155.89,14.48608317]
[1749037542232,0.13807385,155.93,155.92,26.0]
[1749037542432,0.13807385,155.94,155.92,40.48608317]
[1749037542638,0.13807385,155.96,155.93,14.48608317]
[1749037542851,0.13807385,155.96,155.95,14.48608317]
[1749037543351,0.13807385,155.97,155.95,14.48608317]
[1749037543532,0.13807385,155.97,155.96,14.48608317]
[1749037544252,0.13807385,156.0,155.96,14.48608317]
[1749037544441,6.135,156.02,155.96,26.0]
[1749037544442,0.13807385,155.98,155.96,26.0]
[1749037544651,0.13807385,155.98,155.97,14.48608317]
[1749037546043,0.13807385,155.98,155.96,26.0]
[1749037546227,0.13807385,155.98,155.97,14.48608317]
[1749037550443,0.13807385,155.98,155.96,26.0]
[1749037550645,0.13807385,155.98,155.97,14.48608317]
[1749037551438,18.64964886,156.01,155.97,14.48608317]
[1749037551439,0.13807385,155.99,155.97,14.48608317]
[1749037551645,0.13807385,155.98,155.97,14.48608317]
[1749037552944,0.13807385,155.98,155.96,26.0]
[1749037553152,18.64964886,156.01,155.96,26.0]
[1749037553153,0.13807385,155.97,155.96,26.0]
[1749037553351,0.13807385,155.97,155.96,40.48608317]
[1749037556950,0.13807385,155.99,155.98,26.0]
[1749037557170,0.13807385,155.99,155.98,40.48608317]
[1749037558385,0.13807385,155.99,155.98,14.48608317]
[1749037559465,0.13807385,156.01,155.99,0.14216157]
[1749037559669,0.13807385,156.01,156.0,14.48608317]
[1749037560658,0.13807385,156.04,156.0,14.48608317]
[1749037560858,0.13807385,156.04,156.03,14.48608317]
[1749037565859,0.13807385,156.03,156.01,0.42648471]
[1749037566055,0.13807385,156.03,156.02,14.48608317]
[1749037567277,0.13807385,156.05,156.02,14.48608317]
[1749037567478,0.13807385,156.03,156.02,26.0]
[1749037567860,0.13807385,156.05,156.02,26.0]
[1749037568060,0.13807385,156.05,156.01,26.42648471]
[1749037568558,0.13807385,156.03,156.01,26.42648471]
[1749037568762,0.13807385,156.05,156.02,14.48608317]
[1749037569058,0.13807385,156.05,156.04,14.48608317]
[1749037570880,0.13807385,156.06,156.04,14.48608317]
[1749037571095,0.13807385,156.06,156.05,14.48608317]
[1749037574171,0.13807385,156.06,156.02,26.0]
[1749037574488,0.13807385,156.04,156.02,26.0]
[1749037574788,0.13807385,156.04,156.03,40.48608317]
[1749037575457,0.13807385,156.05,156.03,40.48608317]
[1749037575672,0.13807385,156.05,156.04,14.48608317]
[1749037580492,0.13807385,156.07,156.04,14.48608317]
[1749037580675,6.2539,156.1,156.02,26.0]
[1749037580676,0.13807385,156.06,156.03,0.42648471]
[1749037580876,0.13807385,156.06,156.05,14.48608317]
[1749037581291,0.13807385,156.08,156.05,14.48608317]
[1749037581493,0.13807385,156.06,156.03,0.42648471]
[1749037582593,0.13807385,156.06,156.05,14.48608317]
[1749037583681,0.13807385,156.08,156.05,40.48608317]
[1749037583884,0.13807385,156.08,156.07,14.48608317]
[1749037584287,6.2539,156.1,156.07,14.48608317]
[1749037584288,0.13807385,156.09,156.07,14.48608317]
[1749037584605,0.13807385,156.09,156.08,14.48608317]
[1749037585394,6.39197385,156.1,156.08,14.48608317]
[1749037585584,0.13807385,156.09,156.07,5.07729495]
[1749037585782,0.13807385,156.09,156.08,14.48608317]
[1749037592823,0.13807385,156.1,156.08,14.48608317]
[1749037593023,0.13807385,156.1,156.09,14.48608317]
[1749037594006,0.13807385,156.11,156.09,14.48608317]
[1749037594219,0.13807385,156.1,156.08,40.48608317]
[1749037594422,0.13807385,156.1,156.09,14.48608317]
[1749037595005,0.13807385,156.11,156.09,14.48608317]
[1749037595221,0.13807385,156.11,156.1,14.48608317]
[1749037597430,1.79167385,156.15,156.11,26.0]
[1749037597628,1.79167385,156.15,156.14,14.48608317]
[1749037597629,0.13807385,156.15,156.14,14.48608317]
[1749037600935,0.13807385,156.12,156.09,26.42648471]
[1749037601132,0.13807385,156.12,156.11,14.48608317]
[1749037603244,0.13807385,156.12,156.11,40.48608317]
[1749037606551,0.13807385,156.13,156.11,40.48608317]
[1749037606757,0.13807385,156.13,156.12,14.48608317]
[1749037609033,25.42012271,156.13,156.12,14.48608317]
[1749037609731,0.13807385,156.12,156.11,14.48608317]
[1749037609936,0.13807385,156.12,156.09,14.48608317]
[1749037609937,0.13807385,156.11,156.09,14.48608317]
[1749037610461,0.13807385,156.09,156.05,0.42648471]
[1749037610763,0.13807385,156.09,156.08,14.48608317]
[1749037614634,0.13807385,156.09,156.06,7.90204253]
[1749037614838,0.13807385,156.09,156.08,14.48608317]
[1749037615255,0.13807385,156.07,156.06,7.90204253]
[1749037615461,0.13807385,156.07,156.06,22.3881257]
[1749037616331,0.13807385,156.07,156.06,7.90204253]
[1749037616532,0.13807385,156.07,156.05,27.15001839]
[1749037616533,0.13807385,156.06,156.05,41.63610156]
[1749037616756,0.13807385,156.06,156.05,14.48608317]
[1749037617490,0.13807385,156.08,156.05,14.48608317]
[1749037617657,0.13807385,156.08,156.07,14.48608317]
[1749037620671,0.13807385,156.07,156.03,39.00773894]
[1749037620987,0.13807385,156.06,156.03,33.95596103]
[1749037621169,0.13807385,156.06,156.05,14.48608317]
[1749037621865,0.13807385,156.07,156.05,14.48608317]
[1749037622085,0.13807385,156.07,156.06,14.48608317]
[1749037623965,0.13807385,156.05,156.03,33.95596103]
[1749037624171,0.13807385,156.05,156.04,14.48608317]
[1749037624793,0.13807385,156.06,156.04,14.48608317]
[1749037625107,0.13807385,156.05,156.03,33.95596103]
[1749037625270,0.13807385,156.05,156.04,14.48608317]
[1749037627198,24.73944886,156.08,155.98,0.14216157]
[1749037627199,0.13807385,156.02,155.98,0.14216157]
[1749037627385,0.13807385,156.02,156.01,14.48608317]
[1749037628497,0.13807385,156.04,156.01,40.77040631]
[1749037628671,6.0898,156.08,156.01,26.28432314]
[1749037628672,0.13807385,156.03,156.01,26.28432314]
[1749037628871,0.13807385,156.03,156.02,14.48608317]
[1749037632292,0.13807385,156.06,156.05,26.0]
[1749037632621,0.13807385,156.06,156.05,40.48608317]
[1749037633184,0.13807385,156.06,156.05,14.48608317]
[1749037637395,0.13807385,156.07,156.05,14.48608317]
[1749037637619,0.13807385,156.07,156.06,14.48608317]
[1749037638234,18.64964886,156.1,156.06,14.48608317]
[1749037638235,0.13807385,156.1,156.06,14.48608317]
[1749037638400,7.6623,156.13,156.04,26.42648471]
[1749037638401,0.13807385,156.08,156.05,0.14216157]
[1749037638610,0.13807385,156.08,156.07,14.48608317]
[1749037640411,0.13807385,156.08,156.05,0.14216157]
[1749037640716,0.13807385,156.08,156.04,33.92667082]
[1749037640912,0.13807385,156.06,156.05,0.42648471]
[1749037642224,0.13807385,156.06,156.05,14.91256788]
[1749037643444,0.13807385,156.07,156.05,14.91256788]
[1749037643624,0.13807385,156.07,156.06,14.48608317]
[1749037660163,0.13807385,156.1,156.08,26.0]
[1749037660383,0.13807385,156.09,156.08,26.0]
[1749037660961,0.13807385,156.09,156.07,26.0]
[1749037661490,7.6623,156.13,156.06,0.42648471]
[1749037661491,0.13807385,156.13,156.08,29.54081262]
[1749037661796,0.13807385,156.13,156.12,14.48608317]
[1749037664286,0.13807385,156.14,156.12,14.48608317]
[1749037664486,0.13807385,156.14,156.13,14.48608317]
[1749037666611,50.59905698,156.24,156.13,14.48608317]
[1749037666612,0.13807385,156.15,156.13,14.48608317]
[1749037666913,0.13807385,156.19,156.17,26.0]
[1749037667087,0.13807385,156.19,156.18,14.48608317]
[1749037667985,0.13807385,156.19,156.18,14.91256788]
[1749037668296,0.13807385,156.19,156.18,15.05472945]
[1749037668704,0.13807385,156.19,156.18,14.91256788]
[1749037669690,0.13807385,156.19,156.18,14.48608317]
[1749037669913,0.13807385,156.19,156.1,21.41172615]
[1749037669914,0.13807385,156.18,156.12,0.14216157]
[1749037670210,0.13807385,156.18,156.17,14.48608317]
[1749037674322,0.13807385,156.19,156.17,14.91256788]
[1749037674620,0.13807385,156.19,156.16,40.48608317]
[1749037674621,0.13807385,156.19,156.18,14.91256788]
[1749037679419,1.5933,156.24,156.21,26.0]
[1749037679420,0.13807385,156.22,156.21,26.0]
[1749037679620,6.4032,156.25,156.21,40.48608317]
[1749037679621,0.13807385,156.23,156.21,40.48608317]
[1749037679821,0.13807385,156.23,156.22,14.48608317]
[1749037680714,6.4032,156.25,156.19,0.42648471]
[1749037680715,0.13807385,156.21,156.19,26.28432314]
[1749037680935,0.13807385,156.22,156.2,14.48608317]
[1749037681128,0.13807385,156.22,156.21,14.48608317]
[1749037683375,0.13807385,156.23,156.2,0.14216157]
[1749037683528,0.13807385,156.23,156.22,14.48608317]
[1749037685925,0.13807385,156.2,156.13,32.46079965]
[1749037686142,0.13807385,156.2,156.19,14.48608317]
[1749037686327,0.13807385,156.2,156.19,40.48608317]
[1749037690736,0.13807385,156.21,156.19,40.48608317]
[1749037690935,0.13807385,156.21,156.2,14.48608317]
[1749037691658,0.13807385,156.23,156.22,26.0]
[1749037691970,0.13807385,156.23,156.22,40.48608317]
[1749037692862,0.13807385,156.24,156.22,40.91256788]
[1749037693175,0.13807385,156.24,156.23,28.97216634]
[1749037693358,0.13807385,156.26,156.25,26.0]
[1749037693673,0.13807385,156.26,156.25,40.48608317]
[1749037694655,0.13807385,156.27,156.25,40.48608317]
[1749037694863,0.13807385,156.27,156.26,40.48608317]
[1749037710626,0.13807385,156.27,156.26,14.48608317]
[1749037711612,0.13807385,156.26,156.25,14.48608317]
[1749037711806,0.13807385,156.24,156.2,146.084988]
[1749037712008,0.13807385,156.21,156.2,0.084988]
[1749037712523,0.13807385,156.21,156.2,48.64605876]
[1749037713224,0.13807385,156.21,156.2,22.64605876]
[1749037713398,0.13807385,156.21,156.2,48.64605876]
[1749037713601,0.13807385,156.22,156.2,48.64605876]
[1749037713805,0.13807385,156.22,156.21,14.48608317]
[1749037715820,0.13807385,156.21,156.2,0.084988]
[1749037716003,0.13807385,156.21,156.2,14.57107117]
[1749037719429,0.13807385,156.22,156.2,14.57107117]
[1749037719605,0.13807385,156.21,156.2,0.084988]
[1749037720113,0.13807385,156.21,156.2,14.57107117]
[1749037722845,0.13807385,156.2,156.19,26.0]
[1749037723152,0.13807385,156.19,156.18,14.48608317]
[1749037728042,0.13807385,156.19,156.17,14.48608317]
[1749037728227,0.13807385,156.18,156.17,14.48608317]
[1749037729558,0.13807385,156.16,156.15,53.63650231]
[1749037729733,0.13807385,156.16,156.15,27.63650231]
[1749037729929,0.13807385,156.16,156.15,42.12258548]
[1749037731356,0.13807385,156.16,156.15,26.0]
[1749037731650,0.13807385,156.16,156.15,40.48608317]
[1749037733949,6.5966,156.18,156.1,5.06212287]
[1749037733950,0.13807385,156.13,156.1,0.14216157]
[1749037734136,0.13807385,156.13,156.12,14.48608317]
[1749037734645,0.13807385,156.13,156.11,40.48608317]
[1749037734827,0.13807385,156.12,156.11,14.48608317]
[1749037736458,0.13807385,156.12,156.09,26.0]
[1749037736655,0.13807385,156.09,156.06,0.14216157]
[1749037736859,0.13807385,156.09,156.08,26.0]
[1749037737034,0.13807385,156.09,156.08,40.48608317]
[1749037741662,18.64964886,156.11,156.07,14.48608317]
[1749037741663,0.13807385,156.08,156.07,14.48608317]
[1749037742260,0.13807385,156.06,156.05,7.90830531]
[1749037742449,0.13807385,156.06,156.05,22.39438848]
[1749037754792,0.13807385,155.96,155.93,1.6047]
[1749037754999,0.13807385,155.95,155.92,0.30562599]
[1749037755212,0.13807385,155.95,155.89,1.6047]
[1749037755213,0.13807385,155.95,155.94,40.48608317]
[1749037755419,0.13807385,155.95,155.94,14.48608317]
[1749037755714,0.13807385,155.94,155.93,14.48608317]
[1749037756086,0.13807385,155.93,155.92,14.48608317]
[1749037756285,6.4806,156.0,155.9,14.48608317]
[1749037756286,0.13807385,155.91,155.9,14.48608317]
[1749037756514,0.13807385,155.91,155.9,40.48608317]
[1749037756703,0.13807385,155.91,155.9,14.48608317]
[1749037757101,0.13807385,155.91,155.9,40.48608317]
[1749037757409,0.13807385,155.91,155.9,14.48608317]
[1749037757594,21.10884474,156.0,155.91,0.14216157]
[1749037757595,0.13807385,155.93,155.91,0.14216157]
[1749037757794,0.13807385,155.93,155.92,14.48608317]
[1749037758991,18.64964886,155.97,155.92,14.48608317]
[1749037758992,0.13807385,155.94,155.92,14.48608317]
[1749037759192,0.13807385,155.93,155.92,14.48608317]
[1749037761295,0.13807385,155.93,155.91,26.14216157]
[1749037761618,0.13807385,155.93,155.92,14.48608317]
[1749037762320,0.13807385,155.94,155.92,14.48608317]
[1749037762618,0.13807385,155.93,155.92,14.48608317]
[1749037766197,0.13807385,155.95,155.94,26.0]
[1749037766529,0.13807385,155.97,155.95,0.28432314]
[1749037766693,0.13807385,155.96,155.95,26.28432314]
[1749037766896,0.13807385,155.96,155.95,40.77040631]
[1749037767430,6.4806,156.0,155.96,0.28432314]
[1749037767431,0.13807385,155.97,155.96,0.28432314]
[1749037767637,0.13807385,155.98,155.96,14.77040631]
[1749037767944,0.13807385,155.98,155.97,14.48608317]
[1749037768628,0.13807385,156.01,155.98,0.42648471]
[1749037768829,0.13807385,156.01,156.0,14.48608317]
[1749037769824,6.1761,156.03,156.0,40.48608317]
[1749037769825,0.13807385,156.02,156.0,40.48608317]
[1749037770021,6.31417385,156.03,156.01,14.48608317]
[1749037770332,6.31417385,156.03,156.02,14.48608317]